bitfinex/quotes_BTCUSD_20250127
["timestamp","ask_amount","ask_price","bid_price","bid_amount"]
[1737970414773,0.00029736,98993.0,98992.0,0.17280453]
[1737970415110,0.00029736,98993.0,98992.0,0.16380453]
[1737970415527,0.00029736,98993.0,98992.0,0.16480453]
[1737970416170,0.00029736,98993.0,98992.0,0.26215182]
[1737970416302,0.00029736,98993.0,98992.0,0.41215182]
[1737970416509,0.00029736,98993.0,98992.0,0.41315182]
[1737970416706,0.00029736,98993.0,98992.0,1.14977982]
[1737970416935,0.00029736,98993.0,98992.0,1.33201782]
[1737970417141,1.056936,99042.0,98992.0,1.33201782]
[1737970417142,0.08169758,99038.0,98999.0,0.02]
[1737970417315,0.08169758,99038.0,99002.0,0.301512]
[1737970417504,0.08169758,99038.0,99002.0,0.39885929]
[1737970417701,0.08169758,99038.0,99002.0,1.49235029]
[1737970417898,0.08169758,99038.0,99002.0,1.0934022]
[1737970418100,0.08169758,99038.0,99002.0,1.1163905]
[1737970418308,0.15146,99036.0,99002.0,0.52870729]
[1737970418507,0.201947,99036.0,99002.0,0.52870729]
[1737970418740,0.15176036,99034.0,99002.0,0.52870729]
[1737970418952,0.00029736,99034.0,99002.0,0.52870729]
[1737970419148,0.00029736,99034.0,99002.0,0.42185929]
[1737970419351,0.151467,99031.0,99002.0,0.72598329]
[1737970419599,0.00029736,99034.0,99002.0,0.40085929]
[1737970419600,0.201959,99030.0,99002.0,0.40085929]
[1737970419805,0.201959,99030.0,99002.0,0.408837]
[1737970420202,0.151476,99026.0,99002.0,0.413837]
[1737970420402,0.151478,99024.0,99002.0,0.408837]
[1737970420581,0.151479,99024.0,99002.0,0.408837]
[1737970420965,0.201959,99030.0,99002.0,0.413837]
[1737970421171,0.151476,99026.0,99002.0,0.413837]
[1737970421375,0.201959,99030.0,99002.0,0.413837]
[1737970421549,0.151476,99026.0,99002.0,0.408837]
[1737970421967,0.151471,99029.0,99002.0,0.414837]
[1737970422146,0.201953,99033.0,99002.0,0.414837]
[1737970422340,0.201953,99033.0,99002.0,0.412837]
[1737970422565,0.00029736,99034.0,99002.0,0.435837]
[1737970422873,0.00029736,99034.0,99002.0,0.437837]
[1737970423043,0.00029736,99034.0,99002.0,0.718872]
[1737970423232,0.00029736,99034.0,99002.0,0.714872]
[1737970423431,0.00029736,99034.0,99002.0,0.629979]
[1737970423653,0.00029736,99034.0,99002.0,0.631979]
[1737970423908,0.15176136,99034.0,99002.0,0.627979]
[1737970424340,0.15176136,99034.0,99002.0,0.65494191]
[1737970424541,0.00029736,99034.0,99002.0,0.67393021]
[1737970424744,0.15176036,99034.0,99002.0,0.67393021]
[1737970424920,0.151467,99032.0,99002.0,0.610036]
[1737970425215,0.151468,99031.0,99002.0,0.552637]
[1737970425419,0.00029736,99034.0,99002.0,0.445437]
[1737970425630,0.151466,99032.0,99002.0,0.590069]
[1737970425859,0.151466,99032.0,99002.0,1.943437]
[1737970426418,0.201954,99033.0,99002.0,1.910837]
[1737970426639,0.201954,99033.0,99002.0,1.914837]
[1737970426896,0.201965,99027.0,99002.0,1.910837]
[1737970427132,0.151475,99026.0,99002.0,1.914837]
[1737970427379,0.0814,99013.0,99002.0,0.31748971]
[1737970428352,0.0814,99024.0,99002.0,0.31548971]
[1737970428591,0.0814,99024.0,99002.0,0.31348971]
[1737970429070,0.151481,99022.0,99002.0,0.31348971]
[1737970429336,0.151481,99022.0,99002.0,1.81148971]
[1737970429722,0.151481,99022.0,99002.0,1.81348971]
[1737970429967,0.232878,99024.0,99002.0,1.81748971]
[1737970430243,0.232878,99024.0,99002.0,1.81548971]
[1737970430779,0.232878,99024.0,99002.0,1.81148971]
[1737970431029,0.232878,99024.0,99002.0,1.81548971]
[1737970431300,0.232878,99024.0,99002.0,1.81148971]
[1737970431557,0.0814,99024.0,99002.0,2.229436]
[1737970431757,0.0814,99024.0,99002.0,2.160167]
[1737970432171,0.0814,99032.0,99002.0,2.160167]
[1737970432379,0.0814,99032.0,99002.0,2.162167]
[1737970433058,0.0814,99032.0,99002.0,2.156167]
[1737970433268,0.0814,99032.0,99002.0,2.158167]
[1737970433471,0.0814,99032.0,99002.0,2.162167]
[1737970433680,0.0814,99032.0,99002.0,2.158167]
[1737970434093,0.0814,99032.0,99002.0,2.162167]
[1737970435345,0.0814,99032.0,99002.0,2.19356602]
[1737970437945,0.283356,99032.0,99002.0,2.17056602]
[1737970438145,0.15147,99030.0,99002.0,1.94623602]
[1737970438358,0.151471,99029.0,99002.0,2.06837902]
[1737970438920,0.151471,99029.0,99002.0,2.06637902]
[1737970439168,0.0814,99032.0,99002.0,2.06437902]
[1737970439535,0.0814,99032.0,99002.0,2.06837902]
[1737970440410,0.0814,99032.0,99002.0,2.08737902]
[1737970440588,0.0814,99032.0,99002.0,2.09137902]
[1737970440800,0.0814,99032.0,99002.0,2.08937902]
[1737970441377,0.0814,99032.0,99002.0,2.18897902]
[1737970441590,0.00029736,99034.0,99002.0,2.18897902]
[1737970442179,5.9e-07,99008.0,99002.0,2.19897902]
[1737970442391,0.00029736,99034.0,99033.0,0.301464]
[1737970442600,0.00029736,99034.0,99033.0,0.49918481]
[1737970442601,0.00079263,99034.0,99033.0,0.49918481]
[1737970442987,0.0814,99073.0,99046.0,0.301444]
[1737970443195,0.0814,99073.0,99046.0,0.4647736]
[1737970443403,0.00044606,99047.0,99046.0,0.4647736]
[1737970443625,0.00044606,99047.0,99046.0,1.7761466]
[1737970443836,0.00044606,99047.0,99046.0,0.4417736]
[1737970444401,0.00044606,99047.0,99046.0,0.4487736]
[1737970444606,0.00044606,99047.0,99046.0,0.6900786]
[1737970444818,0.00044606,99047.0,99046.0,0.45382229]
[1737970444989,0.00044606,99047.0,99046.0,0.42239998]
[1737970445873,0.00044606,99047.0,99046.0,0.32505269]
[1737970446066,0.00044606,99047.0,99046.0,0.32905269]
[1737970446286,0.00044606,99047.0,99046.0,0.32705269]
[1737970446427,0.00044606,99047.0,99046.0,0.32505269]
[1737970446843,0.00044606,99047.0,99046.0,0.32705269]
[1737970447038,0.00044606,99047.0,99046.0,0.42239998]
[1737970447240,0.00044606,99047.0,99046.0,0.54507998]
[1737970447464,0.00044606,99047.0,99046.0,0.54607998]
[1737970447667,0.00044606,99047.0,99046.0,0.56907998]
[1737970447873,0.00044606,99047.0,99046.0,2.09942558]
[1737970448130,0.00044606,99047.0,99046.0,2.10142558]
[1737970448300,0.00044606,99047.0,99046.0,2.12142558]
[1737970448506,0.00044606,99047.0,99046.0,2.09007998]
[1737970449350,0.00044606,99047.0,99046.0,2.08807998]
[1737970449534,0.00044606,99047.0,99046.0,1.94339998]
[1737970449752,0.00044606,99047.0,99046.0,0.31349269]
[1737970450395,0.00044606,99047.0,99046.0,0.32149269]
[1737970450582,0.00044606,99047.0,99046.0,0.31149269]
[1737970451079,0.00044606,99047.0,99046.0,0.31549269]
[1737970451285,0.00044606,99047.0,99046.0,0.31849269]
[1737970451627,0.00044606,99047.0,99046.0,0.31549269]
[1737970451833,0.00044606,99047.0,99046.0,0.305444]
[1737970452624,0.00044606,99047.0,99046.0,0.31534707]
[1737970453082,0.00044606,99047.0,99046.0,0.71160136]
[1737970453488,0.00044606,99047.0,99046.0,2.21160136]
[1737970453691,0.00044606,99047.0,99046.0,2.07610336]
[1737970454267,0.00044606,99047.0,99046.0,2.03112836]
[1737970454465,0.00044606,99047.0,99046.0,2.02979336]
[1737970461781,0.00044606,99047.0,99046.0,1.91469436]
[1737970461932,0.00044606,99047.0,99046.0,2.06448636]
[1737970463408,0.00044606,99047.0,99046.0,2.08748636]
[1737970463806,0.00044606,99047.0,99046.0,2.21858636]
[1737970464035,6e-08,99047.0,99046.0,2.21858636]
[1737970464264,6e-08,99047.0,99046.0,2.06879436]
[1737970464746,6e-08,99047.0,99046.0,2.06679436]
[1737970464952,0.00029715,99061.0,99060.0,0.301423]
[1737970465131,0.00029715,99061.0,99060.0,0.42177029]
[1737970465535,0.00029715,99061.0,99060.0,3.66486129]
[1737970465739,0.00029715,99061.0,99060.0,3.38302329]
[1737970465900,0.00029715,99061.0,99060.0,2.50946529]
[1737970466105,0.00029715,99061.0,99060.0,0.39877029]
[1737970466344,0.00029715,99061.0,99060.0,0.49911629]
[1737970466570,0.00029715,99061.0,99060.0,0.51067629]
[1737970466955,0.00029715,99061.0,99060.0,0.51867629]
[1737970467174,0.00029715,99061.0,99060.0,0.51267629]
[1737970467379,0.00029715,99061.0,99060.0,0.41233029]
[1737970467521,0.00029715,99061.0,99060.0,0.52012529]
[1737970467923,0.00029715,99061.0,99060.0,0.52212529]
[1737970468180,0.00029715,99061.0,99060.0,0.42840342]
[1737970468393,0.00029715,99061.0,99060.0,0.62831242]
[1737970468524,0.00029715,99061.0,99060.0,0.59881442]
[1737970469135,0.00029715,99061.0,99060.0,0.68326442]
[1737970469345,0.00029715,99061.0,99060.0,0.70626442]
[1737970470349,0.00029715,99061.0,99060.0,2.20626442]
[1737970470555,0.0150723,99088.0,99081.0,0.301391]
[1737970470763,0.0150723,99088.0,99081.0,0.39873829]
[1737970470968,0.00044552,99082.0,99081.0,0.41029829]
[1737970471175,0.00044552,99082.0,99081.0,0.312951]
[1737970471382,0.00044552,99082.0,99081.0,0.412965]
[1737970471584,0.00044552,99082.0,99081.0,0.312951]
[1737970471795,0.00044552,99082.0,99081.0,0.162951]
[1737970471997,0.00044552,99082.0,99081.0,0.17309431]
[1737970472411,0.0119487,99088.0,99081.0,0.02170331]
[1737970472590,0.0119487,99088.0,99087.0,0.151382]
[1737970472891,0.048,99087.0,99083.0,0.20185]
[1737970473099,0.048,99087.0,99086.0,0.151383]
[1737970473735,0.048,99087.0,99050.0,0.201916]
[1737970473736,0.0001414,99082.0,99050.0,0.201916]
[1737970473920,0.0791,99077.0,99070.0,0.00014837]
[1737970474120,0.151406,99071.0,99070.0,0.00014837]
[1737970474263,0.201865,99076.0,99070.0,0.00014837]
[1737970474468,0.151404,99073.0,99070.0,0.00014837]
[1737970474711,0.0791,99077.0,99070.0,0.00014837]
[1737970474919,0.0791,99077.0,99076.0,0.151398]
[1737970475116,0.048,99087.0,99070.0,0.00115774]
[1737970475117,0.048,99087.0,99081.0,0.151391]
[1737970476103,0.0119487,99088.0,99081.0,0.151391]
[1737970476306,0.0119487,99088.0,99081.0,0.39974747]
[1737970476672,0.0119487,99088.0,99081.0,0.42173829]
[1737970476879,0.0119487,99088.0,99081.0,0.301391]
[1737970477101,0.0119487,99088.0,99081.0,0.60283368]
[1737970477508,0.0119487,99088.0,99081.0,0.58461968]
[1737970477709,0.0119487,99088.0,99081.0,0.58661968]
[1737970477824,0.0119487,99088.0,99081.0,0.45252168]
[1737970478592,0.0119487,99088.0,99081.0,0.31322268]
[1737970478824,0.08,99087.0,99081.0,0.31322268]
[1737970478993,0.08,99087.0,99081.0,0.151391]
[1737970479501,0.08,99087.0,99081.0,0.158391]
[1737970479954,0.08,99087.0,99081.0,0.151391]
[1737970480157,0.08,99087.0,99081.0,0.153391]
[1737970480556,0.08,99087.0,99081.0,0.151391]
[1737970480732,0.08,99087.0,99081.0,0.153391]
[1737970482914,0.0119487,99088.0,99081.0,0.153391]
[1737970484537,0.0467,99084.0,99081.0,0.153391]
[1737970484840,0.0467,99084.0,99081.0,0.002]
[1737970484981,0.0467,99084.0,99081.0,0.153391]
[1737970485180,0.0467,99084.0,99081.0,0.15368836]
[1737970485812,0.0467,99084.0,99081.0,0.99058836]
[1737970486569,0.0120903,99088.0,99081.0,1.14058836]
[1737970488154,0.1515304,99082.0,99081.0,0.83919736]
[1737970488340,0.0801414,99082.0,99081.0,0.83919736]
[1737970489091,0.2315304,99082.0,99081.0,0.83919736]
[1737970489578,0.2315304,99082.0,99081.0,0.83719736]
[1737970489784,0.2315304,99082.0,99081.0,0.83919736]
[1737970490169,0.0801414,99082.0,99081.0,0.83719736]
[1737970490345,0.09901593,99082.0,99081.0,0.83719736]
[1737970490530,0.25140493,99082.0,99081.0,0.83719736]
[1737970491350,0.10001593,99082.0,99081.0,0.83719736]
[1737970491564,0.02001593,99082.0,99081.0,0.83719736]
[1737970491761,0.02001593,99082.0,99081.0,0.98858836]
[1737970492570,0.01901593,99082.0,99081.0,0.98858836]
[1737970492796,0.0011414,99082.0,99081.0,0.98858836]
[1737970493536,0.0011414,99082.0,99081.0,0.83719736]
[1737970493801,0.0011414,99082.0,99081.0,0.98858836]
[1737970494012,0.0011414,99082.0,99081.0,0.83719736]
[1737970494268,0.0001414,99082.0,99081.0,0.83719736]
[1737970494505,0.0011414,99082.0,99081.0,0.83719736]
[1737970494756,0.02003277,99082.0,99081.0,0.83719736]
[1737970494985,0.02003277,99082.0,99081.0,0.98858836]
[1737970495958,0.0001414,99082.0,99081.0,0.98858836]
[1737970496195,0.0011414,99082.0,99081.0,0.98858836]
[1737970496669,0.0001414,99082.0,99081.0,1.13858836]
[1737970497279,0.0001414,99082.0,99081.0,1.13958836]
[1737970497662,0.0001414,99082.0,99081.0,1.13858836]
[1737970499100,0.0001414,99082.0,99081.0,1.13958836]
[1737970499301,0.0001414,99082.0,99081.0,1.13858836]
[1737970499713,0.0001414,99082.0,99081.0,1.13958836]
[1737970499922,0.0001414,99082.0,99081.0,1.13858836]
[1737970500347,0.0001414,99082.0,99081.0,1.81087536]
[1737970500561,0.0001414,99082.0,99081.0,0.98858836]
[1737970500772,0.22338869,99082.0,99081.0,0.83719736]
[1737970501020,0.37477769,99082.0,99081.0,0.84119736]
[1737970501661,0.4035468,99082.0,99081.0,0.84119736]
[1737970502313,0.4035468,99082.0,99081.0,0.83819736]
[1737970502513,0.4035468,99082.0,99081.0,0.83719736]
[1737970502729,0.78115698,99082.0,99081.0,0.84019736]
[1737970502938,0.78115698,99082.0,99081.0,0.83719736]
[1737970503152,0.78115698,99082.0,99070.0,0.00014837]
[1737970503153,0.230606,99071.0,99070.0,0.00014837]
[1737970503364,0.37455329,99071.0,99070.0,0.00014837]
[1737970503588,1.12385329,99071.0,99070.0,0.00014837]
[1737970504860,1.09085329,99071.0,99070.0,0.00014837]
[1737970505072,0.93954729,99071.0,99070.0,0.00014837]
[1737970505289,0.7163,99071.0,99070.0,0.00014837]
[1737970505504,0.7163,99071.0,99070.0,0.15155637]
[1737970505681,0.7183,99071.0,99070.0,0.15155637]
[1737970506363,0.7163,99071.0,99070.0,0.15155637]
[1737970506587,0.71603477,99071.0,99070.0,0.15155637]
[1737970506789,0.71603477,99071.0,99070.0,0.30155637]
[1737970507000,0.39503477,99079.0,99078.0,0.151395]
[1737970507218,0.09734729,99079.0,99070.0,0.00014837]
[1737970507439,0.151406,99071.0,99070.0,0.00114837]
[1737970507662,0.37725329,99071.0,99070.0,0.00114837]
[1737970507876,0.37725329,99071.0,99070.0,0.00014837]
[1737970508786,0.39611674,99071.0,99070.0,0.00014837]
[1737970509610,0.37725329,99071.0,99070.0,0.00014837]
[1737970509816,0.37725329,99071.0,99027.0,0.201963]
[1737970509817,0.151447,99044.0,99020.0,0.201977]
[1737970510037,0.151447,99044.0,99030.0,0.201958]
[1737970510038,0.64382906,99044.0,99030.0,0.201958]
[1737970510274,0.64382906,99044.0,99035.0,0.15146]
[1737970510744,0.64382906,99044.0,99036.0,0.151459]
[1737970510978,0.64382906,99044.0,99030.0,0.201958]
[1737970511209,0.64382906,99044.0,99034.0,0.151462]
[1737970511413,0.64382906,99044.0,99030.0,0.201958]
[1737970511616,0.49238206,99044.0,99038.0,0.151456]
[1737970511840,0.39503477,99044.0,99035.0,0.201948]
[1737970512047,0.39503477,99044.0,99040.0,0.151453]
[1737970512264,0.39503477,99044.0,99041.0,0.151451]
[1737970512496,0.54648177,99044.0,99038.0,0.151456]
[1737970512699,0.39503477,99044.0,99035.0,0.201948]
[1737970512919,0.39503477,99044.0,99040.0,0.151453]
[1737970513126,0.39503477,99044.0,99041.0,0.151451]
[1737970513334,0.39503477,99044.0,99040.0,0.201938]
[1737970513553,0.39503477,99044.0,99043.0,0.15174594]
[1737970515127,0.39503477,99044.0,99043.0,0.15374594]
[1737970515751,0.39503477,99044.0,99043.0,0.15474594]
[1737970516180,0.39503477,99044.0,99043.0,0.15374594]
[1737970516419,0.39503477,99044.0,99043.0,0.15174594]
[1737970516628,0.39503477,99044.0,99043.0,0.00029694]
[1737970516841,0.39503477,99044.0,99043.0,0.00329694]
[1737970517031,0.39503477,99044.0,99043.0,0.15174594]
[1737970517423,0.39503477,99044.0,99043.0,0.00229694]
[1737970517660,0.39503477,99044.0,99043.0,0.00029694]
[1737970517890,0.54648177,99044.0,99043.0,0.00029694]
[1737970518108,0.72362906,99044.0,99043.0,0.00129694]
[1737970518418,0.72362906,99044.0,99043.0,0.00229694]
[1737970519037,0.72362906,99044.0,99043.0,0.00129694]
[1737970519469,0.72362906,99044.0,99043.0,0.00029694]
[1737970520825,0.77212906,99044.0,99043.0,0.00029694]
[1737970521145,1.09292906,99044.0,99043.0,0.00029694]
[1737970521648,1.12592906,99044.0,99043.0,0.00029694]
[1737970521843,1.14474907,99044.0,99043.0,0.00029694]
[1737970522267,1.13474907,99044.0,99043.0,0.00029694]
[1737970522471,1.14474907,99044.0,99043.0,0.00029694]
[1737970523325,1.13474907,99044.0,99043.0,0.00029694]
[1737970523946,1.14474907,99044.0,99043.0,0.00029694]
[1737970524196,1.11174907,99044.0,99043.0,0.00029694]
[1737970525041,1.14474907,99044.0,99043.0,0.00029694]
[1737970525912,2.13854907,99044.0,99043.0,0.00029694]
[1737970526143,2.10554907,99044.0,99043.0,0.00029694]
[1737970526963,2.10554907,99044.0,99043.0,0.00229694]
[1737970527393,2.08672906,99044.0,99043.0,0.00129694]
[1737970527841,2.11972906,99044.0,99043.0,0.00129694]
[1737970528050,2.10972906,99044.0,99043.0,0.00129694]
[1737970528428,2.11972906,99044.0,99043.0,0.00129694]
[1737970528663,2.10972906,99044.0,99043.0,0.00129694]
[1737970528843,2.06672906,99044.0,99043.0,0.00029694]
[1737970529273,2.06772906,99044.0,99043.0,0.00029694]
[1737970529487,2.08655101,99044.0,99043.0,0.00029694]
[1737970529679,2.08555101,99044.0,99043.0,0.00029694]
[1737970529880,2.08655101,99044.0,99043.0,0.00029694]
[1737970531680,1.09275101,99044.0,99043.0,0.00029694]
[1737970532142,1.09974385,99044.0,99043.0,0.00029694]
[1737970532568,1.10074385,99044.0,99043.0,0.00029694]
[1737970534850,1.08367776,99044.0,99043.0,0.00029694]
[1737970535298,1.08381946,99044.0,99043.0,0.00029694]
[1737970537278,1.01649751,99044.0,99043.0,0.00029694]
[1737970538103,2.19329751,99044.0,99043.0,0.00029694]
[1737970538942,2.21217418,99044.0,99043.0,0.00029694]
[1737970540233,2.02917418,99044.0,99043.0,0.00029694]
[1737970540677,2.05937055,99044.0,99043.0,0.00029694]
[1737970540881,0.98577055,99044.0,99043.0,0.00029694]
[1737970541114,0.87138964,99044.0,99043.0,0.00029694]
[1737970541932,0.87038964,99044.0,99043.0,0.00029694]
[1737970542156,1.02183664,99044.0,99043.0,0.00029694]
[1737970542349,1.02283664,99044.0,99043.0,0.00029694]
[1737970543430,0.99264027,99044.0,99043.0,0.00029694]
[1737970545054,0.84119327,99044.0,99043.0,0.00029694]
[1737970545198,0.99264027,99044.0,99043.0,0.00029694]
[1737970545651,0.74355597,99044.0,99043.0,0.15174594]
[1737970545804,0.74255597,99044.0,99043.0,0.15174594]
[1737970546000,0.42274598,99044.0,99043.0,0.15174594]
[1737970546465,0.00913454,99044.0,99043.0,0.30174594]
[1737970546672,0.00813454,99044.0,99043.0,1.46439823]
[1737970546825,0.0021417,99044.0,99043.0,1.33978523]
[1737970547039,0.0001416,99070.0,99069.0,0.301409]
[1737970547243,0.0001416,99070.0,99069.0,0.63446829]
[1737970547445,0.0001416,99070.0,99069.0,0.57351429]
[1737970547692,0.0001416,99070.0,99069.0,0.39875629]
[1737970547895,0.0001416,99070.0,99069.0,0.51270329]
[1737970549100,0.0001416,99070.0,99069.0,0.64110329]
[1737970549658,0.0001416,99070.0,99069.0,0.64210329]
[1737970550322,0.0001416,99070.0,99069.0,0.64510329]
[1737970550904,0.0001416,99070.0,99069.0,0.36458336]
[1737970551315,0.0001416,99070.0,99069.0,0.51639036]
[1737970551511,0.0001416,99070.0,99069.0,0.36458336]
[1737970551778,0.0001416,99070.0,99069.0,0.55449536]
[1737970552180,0.0001416,99070.0,99069.0,0.65184265]
[1737970554568,0.0001416,99070.0,99069.0,0.64427665]
[1737970554778,0.0001416,99070.0,99069.0,0.01407436]
[1737970554928,0.64363166,99070.0,99069.0,0.004]
[1737970555130,0.5547022,99070.0,99069.0,0.004]
[1737970555329,0.4032942,99070.0,99069.0,0.155409]
[1737970555605,0.4032942,99070.0,99069.0,0.151409]
[1737970555966,0.39487637,99070.0,99069.0,0.151409]
[1737970556182,0.39487637,99070.0,99066.0,0.201885]
[1737970556183,0.39487637,99070.0,99066.0,0.353298]
[1737970556385,0.151411,99068.0,99044.0,0.20193]
[1737970556586,0.201887,99065.0,99025.0,0.01156]
[1737970556787,0.09734729,99064.0,99041.0,0.201936]
[1737970556987,0.201914,99052.0,99041.0,0.201935]
[1737970557189,0.39473477,99051.0,99039.0,0.151454]
[1737970557400,0.39473477,99051.0,99027.0,0.201964]
[1737970557401,0.151447,99044.0,99027.0,0.201964]
[1737970557649,0.64323916,99044.0,99027.0,0.201964]
[1737970557851,0.64323916,99044.0,99032.0,0.151465]
[1737970558124,0.65164081,99044.0,99027.0,0.201964]
[1737970558637,0.65164081,99044.0,99033.0,0.151464]
[1737970558827,0.65164081,99044.0,99031.0,0.201955]
[1737970559353,0.65264081,99044.0,99037.0,0.151458]
[1737970559771,0.40413642,99044.0,99041.0,0.151451]
[1737970560035,0.55558342,99044.0,99038.0,0.151456]
[1737970560377,0.55558342,99044.0,99039.0,0.151455]
[1737970561222,0.55558342,99044.0,99022.0,0.00989104]
[1737970561223,0.9734407,99044.0,99002.0,0.04939694]
[1737970561458,2.1952407,99044.0,99017.0,0.00993537]
[1737970561669,2.2282407,99044.0,99007.0,0.151503]
[1737970561872,2.0782407,99044.0,99014.0,0.151492]
[1737970562000,2.07827081,99044.0,99005.0,0.202009]
[1737970562207,2.07827081,99044.0,99002.0,0.00029694]
[1737970562208,2.05427081,99044.0,99012.0,0.201995]
[1737970562406,1.97657081,99044.0,99023.0,0.201971]
[1737970562616,1.9685407,99044.0,99027.0,0.201963]
[1737970563018,1.9665407,99044.0,99027.0,0.201963]
[1737970563184,0.9724407,99044.0,99020.0,0.201977]
[1737970563395,1.0054407,99044.0,99003.0,0.01028015]
[1737970563592,1.0054407,99044.0,99012.0,0.151496]
[1737970563811,1.0054407,99044.0,99013.0,0.151494]
[1737970564014,1.9665407,99044.0,99012.0,0.201993]
[1737970564217,1.9665407,99044.0,99017.0,0.201984]
[1737970564464,1.9665407,99044.0,99025.0,0.201967]
[1737970564637,1.9675407,99044.0,99017.0,0.201984]
[1737970564847,1.9675407,99044.0,99020.0,0.151483]
[1737970565045,1.9675407,99044.0,99017.0,0.201984]
[1737970565247,1.9675407,99044.0,99022.0,0.151481]
[1737970565702,1.9665407,99044.0,99021.0,0.201975]
[1737970565886,1.9675407,99044.0,99017.0,0.201984]
[1737970566083,1.9685407,99044.0,99013.0,0.151494]
[1737970566302,1.9685407,99044.0,98988.0,0.202042]
[1737970566303,0.023,99031.0,98988.0,0.202042]
[1737970566499,0.302907,99040.0,98983.0,0.0001414]
[1737970566500,0.15151,99003.0,98983.0,0.0001414]
[1737970566671,0.96350511,99003.0,99002.0,0.00079221]
[1737970566878,0.97175366,99003.0,99002.0,0.00079221]
[1737970567479,0.87440637,99003.0,99002.0,0.00079221]
[1737970567889,0.72389637,99003.0,99002.0,0.00079221]
[1737970568159,0.72389637,99003.0,99002.0,0.15230421]
[1737970568366,0.87540637,99003.0,99002.0,0.00079221]
[1737970568775,0.72489637,99003.0,99002.0,0.00079221]
[1737970569054,0.72489637,99003.0,99002.0,0.15230421]
[1737970569209,0.72289637,99003.0,99002.0,0.15230421]
[1737970569419,0.72589637,99003.0,99002.0,0.15230421]
[1737970569618,0.72689637,99003.0,99002.0,0.15230421]
[1737970569924,0.40338638,99003.0,99002.0,0.15230421]
[1737970570104,0.40638638,99003.0,99002.0,0.15230421]
[1737970570319,0.01224855,99003.0,99002.0,0.55694303]
[1737970570552,0.004,99003.0,99002.0,0.55694303]
[1737970570948,0.39413783,99017.0,99016.0,0.15149]
[1737970571286,0.20191,99054.0,99002.0,0.25543103]
[1737970571287,0.39413783,99025.0,99024.0,0.151478]
[1737970572943,0.39513783,99025.0,99024.0,0.151478]
[1737970573781,0.39513783,99025.0,99024.0,0.24882529]
[1737970573979,0.001,99025.0,99024.0,0.82314729]
[1737970574207,0.001,99025.0,99024.0,1.46916129]
[1737970574385,0.0001417,99044.0,99043.0,0.151449]
[1737970574599,0.0001417,99044.0,99043.0,0.301449]
[1737970575515,0.0001417,99044.0,99043.0,0.515615]
[1737970575670,0.0001417,99044.0,99043.0,0.61296229]
[1737970575872,0.0001417,99044.0,99043.0,0.39879629]
[1737970576127,0.0001417,99044.0,99043.0,0.69809929]
[1737970576729,0.0001417,99044.0,99043.0,0.70818939]
[1737970576915,0.39413783,99068.0,99067.0,0.301412]
[1737970577356,0.00766587,99068.0,99067.0,0.468377]
[1737970577558,0.0001416,99070.0,99068.0,0.173]
[1737970577764,0.0001416,99070.0,99069.0,0.42276551]
[1737970577962,0.0001416,99070.0,99069.0,1.48635529]
[1737970578192,6e-07,99070.0,99069.0,1.64417429]
[1737970578438,0.39413783,99102.0,99081.0,0.301391]
[1737970578645,0.00028969,99082.0,99081.0,0.42173829]
[1737970578850,0.00028969,99082.0,99081.0,1.26672529]
[1737970579062,0.00028969,99082.0,99081.0,1.26665029]
[1737970579263,0.00028969,99082.0,99081.0,0.92399329]
[1737970580515,0.00028969,99082.0,99081.0,2.42399329]
[1737970580708,0.00028969,99082.0,99081.0,0.90081329]
[1737970580919,0.00028969,99082.0,99081.0,0.444371]
[1737970581121,0.00028969,99082.0,99081.0,0.55274874]
[1737970581672,0.00028969,99082.0,99081.0,0.56274874]
[1737970581870,0.00028969,99082.0,99081.0,0.58674874]
[1737970582044,0.39413783,99130.0,99092.0,0.0464]
[1737970582239,0.39413783,99129.0,99128.0,0.301319]
[1737970582488,0.00021835,99131.0,99128.0,0.301319]
[1737970582489,0.00021835,99131.0,99130.0,0.301316]
[1737970582847,0.00021835,99131.0,99130.0,0.524663]
[1737970583682,0.00021835,99131.0,99130.0,0.528663]
[1737970584283,0.00021835,99131.0,99130.0,0.62601029]
[1737970584797,0.00021835,99131.0,99130.0,0.62701029]
[1737970585304,0.00021835,99131.0,99130.0,0.62601029]
[1737970585555,0.00021835,99131.0,99130.0,0.65001029]
[1737970585795,0.00021835,99131.0,99130.0,0.529663]
[1737970586038,0.00021835,99131.0,99130.0,0.441864]
[1737970586538,0.00021835,99131.0,99130.0,0.306316]
[1737970586785,0.00021835,99131.0,99130.0,0.712527]
[1737970587017,0.00021835,99131.0,99130.0,0.81387429]
[1737970587260,0.00021835,99131.0,99130.0,0.81287429]
[1737970587507,0.00021835,99131.0,99130.0,0.71920729]
[1737970587753,0.00021835,99131.0,99130.0,0.54727029]
[1737970587993,0.00021835,99131.0,99130.0,0.445923]
[1737970588233,0.00021835,99131.0,99130.0,0.005]
[1737970588478,0.00021835,99131.0,99130.0,0.156316]
[1737970588715,0.00021835,99131.0,99130.0,0.151316]
[1737970588953,0.00021835,99131.0,99128.0,0.151319]
[1737970589183,0.00021835,99131.0,99130.0,0.001]
[1737970589473,0.00021835,99131.0,99130.0,0.152316]
[1737970589690,0.00766453,99131.0,99130.0,0.001]
[1737970589893,0.00021835,99131.0,99130.0,0.001]
[1737970590103,0.15897853,99131.0,99130.0,0.001]
[1737970590333,0.00021835,99131.0,99130.0,0.005]
[1737970590513,0.00766453,99131.0,99130.0,0.004]
[1737970590724,0.09756564,99131.0,99119.0,0.201777]
[1737970590916,0.09734729,99130.0,99121.0,0.151328]
[1737970591093,0.09734729,99130.0,99124.0,0.151324]
[1737970591308,0.00766453,99131.0,99128.0,0.151319]
[1737970591309,0.00739858,99129.0,99128.0,0.151319]
[1737970591488,0.00021835,99131.0,99120.0,0.201775]
[1737970591707,0.00021835,99131.0,99130.0,0.151316]
[1737970592166,0.00021835,99131.0,99130.0,0.152316]
[1737970593325,0.49170347,99131.0,99130.0,0.001]
[1737970593540,0.49184507,99131.0,99104.0,0.201806]
[1737970593747,0.49148512,99130.0,99112.0,0.01018921]
[1737970593951,0.49148512,99130.0,99107.0,0.15]
[1737970594178,0.00739592,99129.0,99128.0,0.151319]
[1737970594401,0.00035995,99131.0,99130.0,0.152316]
[1737970594815,0.00035995,99131.0,99130.0,0.59066569]
[1737970595027,0.00035995,99131.0,99130.0,0.71484529]
[1737970595227,9.5e-07,99131.0,99130.0,2.19256729]
[1737970595442,9.5e-07,99131.0,99130.0,0.42166329]
[1737970596232,9.5e-07,99131.0,99130.0,0.43181826]
[1737970596848,9.5e-07,99147.0,99144.0,0.15]
[1737970597073,9.5e-07,99147.0,99146.0,0.301292]
[1737970597209,0.0973723,99188.0,99146.0,0.301292]
[1737970597210,7.3e-07,99161.0,99160.0,0.30127]